{"text_format":"1","workbook":"xlsx","n_sheets":3,"sheets":["Ark1","Ark2","Ark3"],"not_rendered":{"charts":0,"images":42,"macros":1,"external_links":0,"defined_names":3,"comments":0,"pivot_tables":0},"unopened":[],"bounds":{"document_bytes":16777216,"sheet_cells":100000,"rows_first":2000,"rows_last":500,"rows_between":2000,"halvings":0,"cell_chars":16384,"cell_head_chars":4096},"cells_cut":0,"cells_raw":0,"read":"whole","date_system":"1900"}

{"sheet":"Ark1","index":0,"n_rows":169,"n_cols":91,"rows_kept":169,"cut":false,"hidden":false,"merged":[]}
[]
[null,null,null,"De danske Guldfluer, Lucilia (Diptera: Calliphoridae)",null,"   Danske Guldfluer, Lucilia (Diptera Calliphoridae)"]
[null,null,null,null,null,null,null,null,"Bent Haagen Petersen"]
[]
["Guldflueslægten Lucilia indeholder i Danmark 7 arter. De fleste er almindelige og velkendte med deres skinnende grønne "]
["eller måske blå, blågrønne eller kobberfarvede krop. De kan måske forveksles med Grøn Snylteflue Gymnocheta viridis   "]
["(Fig.1) og Kokassefluer Neomyia (Fig. 2), men Gymnocheta er større med kraftige børster på krop og ben og fremsky-",null,null,null,null,null,null,null,null,null,null,null,null,null,null,null,null,null,null,null,null,null,null,null,null,null,null,null,null,null,null,null,null,0]
["dende pande. Kokassefluerne har pande og kinder grønne, og som hos den grønne snylteflue er børsterne på brstets over-- ",null,null,null,null,null,null,null,null,null,null,null,null,null,null,null,null,null,null,null,null,null,null,null,null,null,null,null,null,null,null,null,null,0]
["side arrangeret anderledes. Hos Guldfluer er hunners øjne bredt adskilte, medens hanner har dem næsten sammenstødende"]
["eller ret smalt adskilte. De kendetegn, der bruges i nøgler og beskrivelser, er helt de samme som bruges i almindelige nøg-",null,null,null,null,null,null,null,null,null,null,null,null,null,null,null,null,null,null,null,null,null,null,null,null,null,null,null,null,null,null,null,null,0]
["ler:  På hovedet er det panden, 3. følehornsleds længde og bredde samt farven på mundens palper. På brystets overside",null,null,null,null,null,null,null,null,null,null,null,null,null,null,null,null,null,null,null,null,null,null,null,null,null,null,null,null,null,null,null,null,0]
["har antal af børster og deres placering betydning. De inderste to rækker er  acrostical-børsterne (acr). På hver side af dem",null,null,null,null,null,null,null,null,null,null,null,null,null,null,null,null,null,null,null,null,null,null,null,null,null,null,null,null,null,null," Fig. 1   Gymnacheta viridis"]
["en række dorsocentralbørster (dc). Der skelnes mellem  børster foran brystets tværfure (præs.) og børster bag furen"]
["(posts). På bagkroppen er det inderste led T1+2, hvor leddets farve og fordybningen foran dets bagkant er  kendetegn.",null,null,null,null,null,null,null,null,null,null,null,null,null,null,null,null,null,null,null,null,null,null,null,null,null,null,null,null,null,null,null,null,0]
["Leddet bag T1+2 er 3. led, hvor børsters længde skal ses. På mellemste skinneben har antal rygbørster (anterodorsale) be-",null,null,null,null,null,null,null,null,null,null,null,null,null,null,null,null,null,null,null,null,null,null,null,null,null,null,null,null,null,null,null,null,0]
["tydning. Ved vingeforkantens basis findes det lille basicosta. Det kan være lidt vanskeligt at se, men dets farve, lyst eller",null,null,null,null,null,null,null,null,null,null,null,null,null,null,null,null,null,null,null,null,null,null,null,null,null,null,null,null,null,null,null,null,0]
["mørkt, er en vigtig bestemmelseskarakter. Undertiden kan hos L. silvarum  optræde eksemplarer med kun 2 posts. acr-."]
["børster og hos L. bufonivora optræde eksemplarer med 3 posts. acr-børster. Sådanne tilfælde tages der i  nøglen højde for.",null,null,null,null,null,null,null,null,null,null,null,null,null,null,null,null,null,null,null,null,null,null,null,null,null,null,null,null,null,null,null,null,0]
["Hos begge de to arter er T1+2 helt sort i tydelig kontrast til det helt grønne 3.led. Dette kendetegn er ikke med i nøglen,",null,null,null,null,null,null,null,null,null,null,null,null,null,null,null,null,null,null,null,null,null,null,null,null,null,null,null,null,null,null,null,null,0]
["da T1+2 hos andre arter kan synes sort, set fra nogle vinkler, og dermed give anledning til fejlbestemmelse. Pas på ikke at"]
["blande farven på mundens smalle palper sammen med farven på mundens større mørke dele."]
["For at bestemme Lucilia er billeder af høj kvalitet og så mange billeder som muligt en absolut nødvendighed.",null,null,null,null,null,null,null,null,null,null,null,null,null,null,null,null,null,null,null,null,null,null,null,null,null,null,null,null,null,null,null,null,0]
["Et enkelt er kun sjældent nok. Bedst er det at tage belæg til undersøgelse.",null,null,null,null,null,null,null,null,null,null,null,null,null,null,null,null,null,null,null,null,null,null,null,null,null,null,null,null,null,null,null,null,0]
[null,null,null,null,null,null,null,null,null,null,null,null,null,null,null,null,null,null,null,null,null,null,null,null,null,null,null,null,null,null,null,null,null,0]
[null,"Sådan bruger man bedst nøglen",null,null,null,null,null,null,null,null,null,null,null,null,null,null,null,null,null,null,null,null,null,null,null,null,null,null,null,null,null,"    Fig. 2   Neomyia cornicina"]
["Nøglen er specielt konstrueret til brug ved bestemmelse af fluer på billeder. Den bruger samme kendetegn som i de alminde-",null,null,null,null,null,null,null,null,null,null,null,null,null,null,null,null,null,null,null,null,null,null,null,null,null,null,null,null,null,null,null,null,0]
["lige nøgler. Blot er man ikke nødt til at gå frem i nøglen i en given rækkefølge, som man jo skal i almindelige nøgler. Det er",null,null,null,null,null,null,null,null,null,null,null,null,null,null,null,null,null,null,null,null,null,null,null,null,null,null,null,null,null,null,null,null,0]
["en fordel, da der på billeder kan være kendetegn, der ikke er synlige. Med nøglen her klikker man i helt vilkårlig rækkefølge",null,null,null,null,null,null,null,null,null,null,null,null,null,null,null,null,null,null,null,null,null,null,null,null,null,null,null,null,null,null,null,null,0]
["på de kendetegn, man kan se på billedet. Man behøver altså ikke starte med øverste nøglespørgsmål. Det er altid bedst at"]
["starte med kendetegn, som er meget tydelige på billederne. Hver gang, man klikker på et kendetegn, vises dette på et bille-.",null,null,null,null,null,null,null,null,null,null,null,null,null,null,null,null,null,null,null,null,null,null,null,null,null,null,null,null,null,null,null,null,0]
[" de. Klikker man på et kendetegn, der ikke passer med nøglens, gør nøglen opmærksom på, at bestemmelse da næppe vil",null,null,null,null,null,null,null,null,null,null,null,null,null,null,null,null,null,null,null,null,null,null,null,null,null,null,null,null,null,null,null,null,0]
["være mulig.",null,null,null,null,null,null,null,null,null,null,null,null,null,null,null,null,null,null,null,null,null,null,null,null,null,null,null,null,null,null,"   Lucilia han                       "]
["I takt med, at mn klikker på kendetegn, kan man på oversigten over arterne se, at antallet af mulige arter bliver mindre. Når"]
["der kun er et navn tilbage i artsoversigten, skriver nøglen, at fluen nu er bestemt, og dens navn vises øverst på skemaet.  "]
["Derefter bør man klikke ved fluens navn i artsoversigten for at læse beskrivelsen af fluen. Samtidig hermed vises et billede"]
["af den. Er man derefter helt sikker på bstemmelsen, kan man indrapportere observationen. Er man ikke særlig øvet i be-"]
["stemmelse af fluer, bør man vise fluen i Fugle og Naturs Tovinge-forum. "]
[]
[null,null,null,null,null,null,null,null,null,null,null,null,null,null,null,null,null,null,null,null,null,null,null,null,null,null,null,null,null,null,null,"   Lucilia hun"]
[]
[]
[null,null,null,null,null,null,null,null,null,null,null,null,null,null,null,null,null,null,null,null,null,null,null,null,null,null,null,null,null,null,null,null,null,null," "," ",null,null,null,null,null,null,null,null,null,null,null," ",null," ",null,null,null,null,null,null,null,null,null,null,0]
[]
["                Nøgle til danske Guldfluer, Lucilia (Diptera: Calliphoridae) "]
[null,null,null,null," ",null,null," ",null,null,null," ",null," ",null," "]
[null,null,null,null,null,"HUNNER",null,null,null,null,null,null,null,null,null,null,null,null,{"$f":"IF(AM50=1,VLOOKUP(AM49,AM51:AN62,2,FALSE),\"       Lucilia sp.\")","v":" Lucilia silvarum"},null,null,null,null,null,null,null,null,null,null,null,null,null,null,null,17,null,null,null,null,null,null,null,null,null,null,null,null,"*"," ","* "," ","*",null,"*",null,"*",null,"*",null,"*",null,"*",null,"*",null,null,""]
[" ","Øjne bredt adskilte",null,null,null,null,null,null,null,null,null,null,null,null,null,null,null,null,{"$f":"IF(AM50=1,VLOOKUP(AM49,AM64:AN75,2,FALSE), AN76)","v":"     Mørk Guldflue"},null,null,null,null,null,null,null,null,null,null,null,null,null,null,null,null,null,null,null,{"$f":"SUM(AV47+AX47+AZ47+BB47+BD47+BF47+BH47+BJ47+BL47)","v":8},"Afkrydsede felter *",null,null,null,null,null,null,null,{"$f":"IF(AW47=0,0,1)","v":1},{"$f":"SUM(AV48:AW48)","v":1},{"$f":"IF(AY47=0,0,1)","v":1},{"$f":"SUM(AX48:AY48)","v":1},{"$f":"IF(BA47=0,0,1)","v":1},{"$f":"+AZ48+BA48","v":1},{"$f":"IF(BC47=0,0,1)","v":1},{"$f":"+BB48+BC48","v":1},{"$f":"IF(BE47=0,0,1)","v":1},{"$f":"+BD48+BE48","v":1},{"$f":"IF(BG47=0,0,1)","v":1},{"$f":"+BF48+BG48","v":1},{"$f":"IF(BI47=0,0,1)","v":1},{"$f":"+BH48+BI48","v":1},{"$f":"IF(BK47=0,0,1)","v":0},{"$f":"SUM(BJ48:BK48)","v":0},{"$f":"IF(BM47=0,0,1)","v":1},{"$f":"+BL48+BM48","v":1}]
[" 3 par acrostical-børster bag brystets tværfure ?",null,null,null,null,null,null,null,null,null,null," ",null,"    Læs oven over om Guldfluerne og brugen af nøglen. ",null,null,null,null,null,null,null,null,null,null,null,null,null,null,null,null,null,null,null,null,{"$f":"IF(AJ48= TRUE,\"x\",\" \")","v":"x"},true,null,null,null,null,null,null,null,null,null,null,null,{"$f":"IF(AI48=\" \",0,1)","v":1},{"$f":"IF(AI49=\" \",0,1)","v":0},{"$f":"IF(AI51=\" \",0,1)","v":0},{"$f":"IF(AI52=\" \",0,1)","v":1},{"$f":"IF(AI53=\" \",0,1)","v":1},{"$f":"IF(AI55=\" \",0,1)","v":0},{"$f":"IF(AI56=\" \",0,1)","v":0},{"$f":"IF(AI57=\" \",0,1)","v":1},{"$f":"IF(AI59=\" \",0,1)","v":0},{"$f":"IF(AI60=\" \",0,1)","v":1},{"$f":"IF(AI61=\" \",0,1)","v":1},{"$f":"IF(AI63=\" \",0,1)","v":0},{"$f":"IF(AI64=\" \",0,1)","v":1},{"$f":"IF(AI65=\" \",0,1)","v":0},{"$f":"IF(AI67=\" \",0,1)","v":0},{"$f":"IF(AI68=\" \",0,1)","v":0},{"$f":"IF(AI69=\" \",0,1)","v":1},{"$f":"IF(AI71=\" \",0,1)","v":0}]
[" 2 par acrostical-børster bag tværfuren, forreste par mangler ?",null,null,null,null,null,null,null,null,null,null," ",null,null,{"$f":"IF(AM50=1,\"              Fluen er nu bestemt. Se ovenfor.\",\" \")","v":"              Fluen er nu bestemt. Se ovenfor."},null,null,null,null,null,null,null,null,null,null,null,null,null,null,null,null,null,null,null,{"$f":"IF(AJ49=TRUE,\"x\",\" \")","v":" "},0,null,null,{"$f":"MAX(AM51:AM62)","v":8},"Maks.",null,null,null,null,null,null,null,null,null,null,null,null,null,null,null," "]
["Basicosta hvidt eller gult ?",null,null,null,null,null,null,null,null,null,null," ",null,null,{"$f":"IF(AM50=1,\" \",IF(AM47=AM49,\"      Se de mulige arter  i oversigten nedenfor.\",\" \"))","v":" "},null,null,null,null,null,null,null,null,null,null,null,null,null,null,null,null,null,null,null,null,null,null,null,{"$f":"COUNTIF(AM51:AM62,AM49)","v":1},"Ant. Maks",null,null,null,null,null,null,null,"Ho","Hu","As",null,"Au","Ffg",null,"Ffs","Bfg",null,"Bfs","Vt","Vs","Vu","  Pande",null,"Ml","Lh","Lu","la","ko"]
["         -     mørkebrunt eller sort ?",null,null,null,null,null,null,null,null,null,null,null,null,null,null,null,null,null,null,null,null,null,null,null,null,null,null,null,null,null,null,null,null,null,{"$f":"IF(AJ51= TRUE,\"x\",\" \")","v":" "},0,null,null,{"$f":"SUM(AV51:BP51)","v":3},"Lucilia ampullacea",null,null,null,null,null,null,null,null,{"$f":"IF($AI$49=\"x\",1,\" \")","v":" "},null,{"$f":"IF($AI$52=\"x\",1,\" \")","v":1},{"$f":"IF($AI$53=\"x\",1,\" \")","v":1},null,{"$f":"IF(AI56=\"x\",1,\" \")","v":" "},null,{"$f":"IF($AI$59=\"x\",1,\" \")","v":" "},null,null,{"$f":"IF($AI$63=\"x\",1,\" \")","v":" "},null,{"$f":"IF($AI$65=\"x\",1,\" \")","v":" "},null,{"$f":"IF($AI$68=\"x\",1,\" \")","v":" "},{"$f":"IF($AI$69=\"x\",1,\" \")","v":1}]
["Mellemste skinneben midt på med 1 kraftig rygbørste (ad) ?",null,null,null,null,null,null,null,null,null,null,null,null,null,{"$f":"IF(AM47>AM49,\"  Afkrydsede kendetegn passer ikke med nøglens.\",\" \")","v":" "},null,null,null,null,null,null,null,null,null,null,null,null,null,null,null,null,null,null,null,{"$f":"IF(AJ52= TRUE,\"x\",\" \")","v":"x"},true,null,null,{"$f":"SUM(AV52:BP52)","v":5},"Lucilia bufonivora ",null,null,null,null,null,null,null,null,{"$f":"IF($AI$49=\"x\",1,\" \")","v":" "},null,{"$f":"IF($AI$52=\"x\",1,\" \")","v":1},1,null,null,{"$f":"IF(AI57=\"x\",1,\" \")","v":1},null,{"$f":"IF($AI$60=\"x\",1,\" \")","v":1},{"$f":"IF($AI$61=\"x\",1,\" \")","v":1},null,null,{"$f":"IF($AI$65=\"x\",1,\" \")","v":" "},{"$f":"IF($AI$67=\"x\",1,\" \")","v":" "},null,null,{"$f":"IF($AI$71=\"x\",1,\" \")","v":" "}]
["        -            -           midt på med 2 eller 3 rygbørster (ad) ?         ",null,null,null,null,null,null,null,null,null,null,null,null,null,{"$f":"IF(AM47>AM49,\"  Det gør en bestemmelse tvivlsom.    Prøv igen !\",\" \")","v":" "},null,null,null,null,null,null,null,null,null,null,null,null,null,null,null,null,null,null,null,{"$f":"IF(AJ53= TRUE,\"x\",\" \")","v":"x"},true,null,null,4,"  Lucilia caesar ",null,null,null,null,null,null,null,null,{"$f":"IF($AI$49=\"x\",1,\" \")","v":" "},null,{"$f":"IF($AI$52=\"x\",1,\" \")","v":1},1,null,null,{"$f":"IF(AI57=\"x\",1,\" \")","v":1}," ",null,null,{"$f":"IF($AI$63=\"x\",1,\" \")","v":" "},null," ",null,{"$f":"IF($AI$68=\"x\",1,\" \")","v":" "},{"$f":"IF($AI$69=\"x\",1,\" \")","v":1}]
["3. følehornsled langt, mellem 4 og 5 gange så langt som bredt ?",null,null,null,null,null,null,null,null,null,null,null,null,"        Vil du læse om en art, så klik på dens nummer.",null,null,null,null,null,null,null,null,null,null,null,null,null,null,null,null,null,null,null,null," ",null,null,null,4," Lucilia  illustris ",null,null,null,null,null,null,null,null," ",null,1,1,null,null,{"$f":"IF(AI57=\"x\",1,\" \")","v":1}," ",null,null," ",{"$f":"IF($AI$64=\"x\",1,\" \")","v":1},null,null,{"$f":"IF($AI$68=\"x\",1,\" \")","v":" "},null,{"$f":"IF($AI$71=\"x\",1,\" \")","v":" "}]
["       -     3 gange bredden, hos L. silvarum og sericata måske 4 ?",null,null,null,null,null,null,null,null,null,null," ",null,null,null,null,null,null,null,null,null,null,null,null,null,null,null,null,null,null," ",null,null,null,{"$f":"IF(AJ55= TRUE,\"x\",\" \")","v":" "},0,null,null,5,"   Lucilia regalis ",null,null,null,null,null,null,null,{"$f":"IF($AI$48=\"x\",1,\" \")","v":1},null,{"$f":"IF(AI51=\"x\",1,\" \")","v":" "},null,null,{"$f":"IF($AI$55=\"x\",1,\" \")","v":" "},null,{"$f":"IF(AI57=\"x\",1,\" \")","v":1}," ",{"$f":"IF($AI$60=\"x\",1,\" \")","v":1},{"$f":"IF($AI$61=\"x\",1,\" \")","v":1},null,1,null,{"$f":"IF($AI$67=\"x\",1,\" \")","v":" "},null,null,{"$f":"IF($AI$71=\"x\",1,\" \")","v":" "}]
["Palper gule, måske med mørkere spids, eller lyst brunlige ?",null,null,null,null,null,null,null,null,null,null," ",null,null,null,null,{"$f":"IF(AM51=AM49,\"Lucilia ampullacea\",\" \")","v":" "},null,null,null,null,null,null,{"$f":"IF(AM51=AM49,\"Langhornet Guldflue\",\" \")","v":" "},null,null,null,null,null,null,null,null,null,null,{"$f":"IF(AJ56= TRUE,\"x\",\" \")","v":" "},0,null,null,4,"  Lucilia sericata",null,null,null,null,null,null,null,{"$f":"IF($AI$48=\"x\",1,\" \")","v":1},null,{"$f":"IF(AI51=\"x\",1,\" \")","v":" "},null,{"$f":"IF($AI$53=\"x\",1,\" \")","v":1},null,null,{"$f":"IF(AI57=\"x\",1,\" \")","v":1}," ",null,null," ",1,null,{"$f":"IF($AI$67=\"x\",1,\" \")","v":" "},null,null,{"$f":"IF($AI$71=\"x\",1,\" \")","v":" "}]
["    -      sorte eller sortbrune ?",null,null,null,null,null,null,null,null,null,null,null,null,null,null,null,{"$f":"IF(AM52=AM49,\"Lucilia bufonivora\",\" \")","v":" "},null,null,null,null,null,null,{"$f":"IF(AM52=AM49,\"Tudse-Guldflue\",\" \")","v":" "},null,null,null,null,null,null,null,null,null,null,{"$f":"IF(AJ57= TRUE,\"x\",\" \")","v":"x"},true,null,null,8," Lucilia silvarum",null,null,null,null,null,null,null,1,null,null,1,1,null,null,{"$f":"IF(AI57=\"x\",1,\" \")","v":1},null,{"$f":"IF($AI$60=\"x\",1,\" \")","v":1},{"$f":"IF($AI$61=\"x\",1,\" \")","v":1},null,1,null,{"$f":"IF($AI$67=\"x\",1,\" \")","v":" "},null,{"$f":"IF($AI$69=\"x\",1,\" \")","v":1}]
["T3 med børster midt på bagkant, ca. halvt så lange som 4. led ?",null,null,null,null,null,null,null,null,null,null," ",null,null,null,null,{"$f":"IF(AM53=AM49,\"Lucilia caesar\",\" \")","v":" "},null,null,null,null,null,null,{"$f":"IF(AM53=AM49,\"Almindelig Guldflue\",\" \")","v":" "},null,null,null,null,null,null,null,null,{"$f":"VLOOKUP(E82,E86:F103,2)","v":"               Samme børsteafstand "},null," ",null,null,null,0]
["        -         -     meget kortere eller helt manglende ?",null,null,null,null,null,null,null,null,null,null," ",null,null,null,null,{"$f":"IF(AM54=AM49,\"Lucilia illustris\",\" \")","v":" "},null,null,null,null,null,null,{"$f":"IF(AM54=AM49,\"Lys Guldflue\",\" \")","v":" "},null,null,null,null,null,null,null,null,null,null,{"$f":"IF(AJ59= TRUE,\"x\",\" \")","v":" "},0,null,null,0]
["Pande så bred som eller bredere end et øje, set fra oven ?",null,null,null,null,null,null,null,null,null,null," ",null,null,null,null,{"$f":"IF(AM55=AM49,\"Lucilia regalis\",\" \")","v":" "},null,null,null,null,null,null,{"$f":"IF(AM55=AM49,\"Børste-Guldflue\",\" \")","v":" "},null,null,null,null,null,null,null,null,null,null,{"$f":"IF(AJ60= TRUE,\"x\",\" \")","v":"x"},true,null,null,0]
["    -      smallere end øje, måske kun 3/4 af et øjes bredde ?",null,null,null,null,null,null,null,null,null,null," ",null,null,null,null,{"$f":"IF(AM56=AM49,\"Lucilia sericata\",\" \")","v":" "},null,null,null,null,null,null,{"$f":"IF(AM56=AM49,\"Mat Guldflue\",\" \")","v":" "},null,null,null,null,null,null,null,null,null,null,{"$f":"IF(AJ61= TRUE,\"x\",\" \")","v":"x"},true,null,null,0]
["Bagkrops basale udhuling bredt adskilt fra leddets bagkant ?",null,null,null,null,null,null,null,null,null,null," ",null,null,null,null,{"$f":"IF(AM57=AM49,\"Lucilia silvarum\",\" \")","v":"Lucilia silvarum"},null,null,null,null,null,null,{"$f":"IF(AM57=AM49,\"Mørk Guldflue\",\" \")","v":"Mørk Guldflue"},null,null,null,null,null,null,null,null,null,null," ",null,null,null,0]
["      -           -            -       kun meget smalt adskilt fra bagkant ?",null,null,null,null,null,null,null,null,null,null," ",null,null,null,null,null,null,null,null,null,null,null,null,null,null,null,null,null,null,null,null,null,null,{"$f":"IF(AJ63= TRUE,\"x\",\" \")","v":" "},0]
["Afstand mellem præs.acr  = afstand til præs.dc-børster ? ",null,null,null,null,null,null,null,null,null,null," ",null,null,null,null,null,null,null,null,null,null,null,null,null,null,null,null,null,null,null,null,null,null,{"$f":"IF(AJ64= TRUE,\"x\",\" \")","v":"x"},true,null,null,{"$f":"SUM(AV51:BP51)","v":3},"  Langhornet Guldflue",null,null,null,null,null,null,null,null,null,null,null,null,null,null,null,null,null,1,"Eristalis abusiva."]
["                   -                 mindre end afstand til dc-børsterne ?",null,null,null,null,null,null,null,null,null,null," ",null,null,null,null,null,null,null,null,null,null,null,null,null,null,null,null,null,null,null,null,null,null,{"$f":"IF(AJ65= TRUE,\"x\",\" \")","v":" "},false,null,null,5,"     Tudse-Guldflue",null,null,null,null,null,null,null,null,null,null,null,null,{"$f":"-AB65","v":0},null,null,null,null,2,"Eristalis anthophorina."]
[null,null,"          Børster",null,null,null,null,null,null,null,null,null,null,null,null,null,null,null,null,null,null,null,null,null,null,null,null,null,null,null,null,null,null,null," ",null,null,null,4,"Almindelig Guldflue",null,null,null,null,null,null,null,null,null,null,null,null,null,null,null,null,null,3,"Eristalis arbustorum."]
[null,"Børster foran tværfuren er",null,null,null,null,null,null,null,null,null,null,null,null,null,null,null,null,null,null,null,null,null,null,null,null,null,null,null,null,null,null,null,null,{"$f":"IF(AJ67= TRUE,\"x\",\" \")","v":" "},0,null,null,4,"      Lys Guldflue",null,null,null,null,null,null,null,null,null,null,null,null,null,null,null,null,null,4,"Eristalis cryptarum."]
[null,"præsuturale (præs.), bag fu- ",null,null,null,null,null,null,null,null,null,null,null,null,null,null,null,null,null,null,null,null,null,null,null,null,null,null,null,null,null,null,null,null,{"$f":"IF(AJ68= TRUE,\"x\",\" \")","v":" "},0,null,null,5,"     Børste-Guldflue",null,null,null,null,null,null,null,null,null,null,null,null,null,"ø",null,null,null,5,"Eristalis interrupta."]
[null,"ren postsuturale (posts.). De",null,null,null,null,null,null,null,null,null,null,null,null,null,null,null,null,null,null,null,null,null,null,null,null,null,null,null,null,null,null,null,null,{"$f":"IF(AJ69= TRUE,\"x\",\" \")","v":"x"},true,null,null,4,"      MatGuldflue",null,null,null,null,null,null,null,null,null,null,null,null,null,null,null,null,null,6,"Eristalis intricaria."]
[null,"inderste 2 rækker børster er ",null,null,null,null,null,null,null,null,null,null,null,null,null,null,null,null,null,null,null,null,null,null,null,null,null,null,null,null,null,null,null,null," ",null,null,null,8,"     Mørk Guldflue",null,null,null,null,null,null,null,null,null,null,null,null,null,null,null,null,null,7,"Eristalis lineata."]
[null,"acrosticalbørster (acr). Bag",null,null,null,null,null,null,null,null,null,null,null,null,null,null,null,null,null,null,null,null,null,null,null,null,null,null,null,null,null,null,null,null,{"$f":"IF(AJ71= TRUE,\"x\",\" \")","v":" "},false,null,null,0,null,null,null,null,null,null,null,null,null,null,null,null,null,null,null,null,null,null,8,"Eristalis oestracea."]
[null,"furen kan der være 3 par ",null,null,null,null,null,null,null,null,null,null,null,null,null,null,null,null,null,null,null,null,null,null,null,null,null,null,null,null,null,null,null,null,{"$f":"IF(AJ72= TRUE,\"x\",\" \")","v":" "},0,null,null,0,null,null,null,null,null,null,null,null,null,null,null,null,null,null,null,null,null,null,9,"Eristalis pertinax."]
[null,"som her eller 2 par, hvor for-",null,null,null,null,null,null,null,null,null,null,null,null,null,null,null,null,null,null,null,null,null,null,null,null,null,null,null,null,null,null,{"$f":"VLOOKUP(K82,T86:U92,2)","v":"                   Lucilia silvarum    "},null,null,null,null,null,0,null,null,null,null,null,null,null,null,null,null,null,null,null,null,null,null,null,null,10,"Eristalis rupium gruppe."]
[null,"reste par mangler.",null,null,null,null,null,null,null,null,null,null,null,null,null,null,null,null,null,null,null,null,null,null,null,null,null,null,null,null,null,null,null,null,{"$f":"IF(AJ74= TRUE,\"x\",\" \")","v":" "},0,null,null,0,null,null,null,null,null,null,null,null,null,null,null,null,null,null,null,null,null,null,11,"Eristalis similis."]
[null,"På hver side af acrostical-",null,null,null,null,null,null,null,null,null,null,null,null,null,null,null,null,null,null,null,null,null,null,null,null,null,null,null,null,null,null,null,null,{"$f":"IF(AJ75= TRUE,\"x\",\" \")","v":" "},0,null,null,0,null,null,null,null,null,null,null,null,null,null,null,null,null,null,null,null,null,null,12,"Eristalis tenax."]
[null,"børsterne er der en række",null,null,null,null,"Lucilia sericata",null,null,null,null,null,null,null,null,null,null,null,null,null,null,null,null,null,null,null,null,null,null,null,null,null,null,null,null,null,null,null,null,"          Guldflue"]
[null,"dorsocentralbørster (dc)."]
[]
[]
[]
[]
[null,null,null,null,{"$f":"AI46","v":17},null,null,null,null,null,{"$f":"AL91","v":7}]
[]
[]
[]
[null,null,null,null,1,"     3 par acr-børster bag tværfuren",null,null,null,null,null,null,null,null,null,null,null,null,null,1,"               Lucilia ampullacea    "]
[null,null,null,null,2,"     2 par acr-børster bag tværfuren",null,null,null,null,null,null,null,null,null,null,null,null,null,2,"                 Lucilia bufonivora      "]
[null,null,null,null,3,"                  Hvidt basicosta",null,null,null,null,null,null,null,null,null,null,null,null,null,3,"                    Lucilia caesar      ",null,null,null,null,null,null,null,null,null,null,null,null,null,null," "]
[null,null,null,null,4,"                   Sort basicosta",null,null,null,null,null,null,null,null,null,null,null,null,null,4,"                   Lucilia  illustris     "]
[null,null,null,null,5,"    1 rygbørste på mellemskinneben",null,null,null,null,null,null,null,null,null,null,null,null,null,5,"                    Lucilia regalis    "]
[null,null,null,null,6,"    2-3 børster på mellemskinneben",null,null,null,null,null,null,null,null,null,null,null,null,null,6,"                   Lucilia sericata   ",null,null,null,null,null,null,null,null,null,null,null,null,null,null,null," ",7]
[null,null,null,null,7,"     Føleorn lange, 4-5 gange bredden",null,null,null,null,null,null,null,null,null,null,null,null,null,7,"                   Lucilia silvarum    ",null,null,null,null,null,null,null,null,null,null,null,null,null,null,null," "]
[null,null,null,null,8,"          Følehorn 3-4 gange bredden",null,null,null,null,null,null,null,null,null,null,null,null,null,null,null,null,null,null,null,null,null,null,null,null,null,null,null,null,null,null," "]
[null,null,null,null,9,"     Palper gule eller med spids brnere"]
[null,null,null,null,10,"        Palper sorte eller sortbrune"]
[null,null,null,null,11,"  Børster ca. halvt så lnage som 4. led"]
[null,null,null,null,12,"       Bagkant midt på uden lange børster"]
[null,null,null,null,13,"           Pande breder end øje"]
[null,null,null,null,14,"          Pande smallere end øje"]
[null,null,null,null,15," Fordybning tydeligt adskilt fra bagkant",null,null,null,null,null,null,null,null,null,null,null,null,null,null,null,null,null,null,null,null,null,null,null,null,null,null,null,null,null,null," "]
[null,null,null,null,16,"    Fordybning meget tæt på bagkant"]
[null,null,null,null,17,"               Samme børsteafstand "]
[null,null,null,null,18,"           Forskellig børsteafstand"]
[]
[null,null,null," "]
[null,null,null," "]
[null,null,null," "]
[null,null,null," "]
[null,null,null," "]
[null,null,null," "]
[null,null,null," ",null,null,null,null,null,null,null,null,null,null,null,null,null,null,null,null,null,null,null,null,null,null,null,null,null,null,null,null,null,null,null,null,null,null,null,null,null,null,null,null,null,null,null,null,null,null,null,null,null,null,null,null,null,null,null,null,null,null,null,null,null,null,null,null,null,null,null,null,null,null,null,null,null,null,null,null,null,null,null,null,null,null,null,null,null,{"$f":"SUM(K82)","v":7},{"$f":"VLOOKUP(CL111,'Ark3'!B1:C7,2,FALSE)","v":"ARK3!A7"}]
[null,null,null," ",null,null,null,null,null,null,null,null,null,null,null,"Lopslag for teksterne bruger CK111 og CL111 og CM111 sammen med K82 , der er lig alternativknapperne",null,null,null,null,null,null,null,null,null,null,null,null,null,null,null,null,null,null,null,null,null,null,null,null,null,null,null,null,null,null,null,null,null,null,null,null,null,null,null,null,null,null,null,null,null,null,null,null,null,null,null,null,null,null,null,null,null,null,null,null,null,null,null,null,null,null,null,null,null,null,null,null,null,{"$f":"SUM(K82)","v":7},{"$f":"VLOOKUP(CL112,'Ark2'!G1:H7,2,FALSE)","v":"Ark2!F7"}]
[null,null,null," ",null,null,null,null,null,null,null,null,null,null,null,"Lopslag for kendetegnbillede bruger CK113 og CL113 og CM113 sammen med AI46 , der er lig checkboxene",null,null,null,null,null,null,null,null,null,null,null,null,null,null,null,null,null,null,null,null,null,null,null,null,null,null,null,null,null,null,null,null,null,null,null,null,null,null,null,null,null,null,null,null,null,null,null,null,null,null,null,null,null,null,null,null,null,null,null,null,null,null,null,null,null,null,null,null,null,null,null,null,null,{"$f":"SUM(AI46)","v":17},{"$f":"VLOOKUP(CL113,'Ark2'!L1:M21,2,FALSE)","v":"Ark2!K17"}]
[null,null,null," ",null,null,null,null,null,null,null,null,null,null,null,"Lopslag forbillede1 bruger CK112 og CL112 og CM112 sammen med K82 , der er lig alternativknapperne"]
[null,null,null," ",null,null,null,null,null,null,null,null,null,null,null,"flag3 er for kendetegnbillede;flag2 er for 1. billede;flag1 er for teksterne"]
[null,null,null," "]
[null,null,null," "]
[null,null,null," "]
[null,null,null," "]
[null,null,null," "]
[null,null,null," "]
[null,null,null," "]
[]
[null,null,null,null,null,null,null,null,null,null,null,null,null,null,null,null,null,null,null,null,null,null,null,null,null,null,null,null,null,null,null,null,null,null," "]
[]
[]
[]
[]
[]
[]
[]
[]
[null,null,null,null,null,null,null,null,null,null,null,null,null,null,null,null,null,null,null,null,null,null,null,null,null,null,null,null,null,null,null,null,null," "]
[]
[null,null,null,null,null,null,null,null,null,null,null,null,null,null,null,null,null,null,null,null,null,null,null,null,null,null,null,null,null,null,null,null,null,null,null," "]
[]
[]
[]
[]
[]
[]
[]
[]
[]
[]
[]
[]
[]
[]
[]
[]
[]
[]
[]
[]
[]
[]
[]
[]
[]
[]
[]
[]
[]
[]
[]
[]
[]
[null,null,null,null,null,null,null,null,null,null,null,null,null,null,null,null,null,null,null,null,null,null,null,null,null,null,null,null,null,null,null,null,null," "]

{"sheet":"Ark2","index":1,"n_rows":21,"n_cols":13,"rows_kept":21,"cut":false,"hidden":false,"merged":[]}
[null,"Denne række er ikke i brug","Ark2!A1",null,null,null,1,"Ark2!F1","L. ampullacea",null,0,1,"Ark2!K1"]
[null,null,"Ark2!A2",null,null,null,2,"Ark2!F2","L. bofomivore",null,null,2,"Ark2!K2"]
[null,3,"Ark2!A3",null,null,null,3,"Ark2!F3","L. caesar",null,null,3,"Ark2!K3"]
[null,4,"Ark2!A4",null,null,null,4,"Ark2!F4","L. illustris",null,null,4,"Ark2!K4"]
[null,5,"Ark2!A5",null,null,null,5,"Ark2!F5","L.regalis",null,null,5,"Ark2!K5"]
[null,6,"Ark2!A6",null,null,null,6,"Ark2!F6","L.sericata",null,null,6,"Ark2!K6"]
[null,7,"Ark2!A7",null,null,null,7,"Ark2!F7","L. silvarum",null,null,7,"Ark2!K7"]
[null,8,"Ark2!A8",null,null,null,8,"Ark2!F8",null,null,null,8,"Ark2!K8"]
[null,9,"Ark2!A9",null,null,null,9,"Ark2!F9",null,null,null,9,"Ark2!K9"]
[null,10,"Ark2!A10",null,null,null,10,"Ark2!F10",null,null,null,10,"Ark2!K10"]
[null,11,"Ark2!A11",null,null,null,11,"Ark2!F11",null,null,null,11,"Ark2!K11"]
[null,12,"Ark2!A12",null,null,null,12,"Ark2!F12",null,null,null,12,"Ark2!K12"]
[null,null,null,null,null,null,null,null,null,null,null,13,"Ark2!K13"]
[null,null,null,null,null,null,null,null,null,null,null,14,"Ark2!K14"]
[null,null,null,null,null,null,null,null,null,null,null,15,"Ark2!K15"]
[null,null,null,null,null,null,null,null,null,null,null,16,"Ark2!K16"]
[null,null,null,null,null,null,null,null,null,null,null,17,"Ark2!K17"]
[null,null,null,null,null,null,null,null,null,null,null,18,"Ark2!K18"]
[null,null,null,null,null,null,null,null,null,null,null,19,"Ark2!K19"]
[null,null,null,null,null,null,null,null,null,null,null,20,"Ark2!K20"]
[null,null,null,null,null,null,null,null,null,null,null,21,"Ark2!K21"]

{"sheet":"Ark3","index":2,"n_rows":7,"n_cols":4,"rows_kept":7,"cut":false,"hidden":false,"merged":[]}
[null,1,"ARK3!A1","L. ampullacea"]
[null,2,"ARK3!A2","L. bufonivora"]
[null,3,"ARK3!A3","L. caesar"]
[null,4,"ARK3!A4","L. illustris"]
[null,5,"ARK3!A5","L. regalis"]
[null,6,"ARK3!A6","L. sericata"]
[null,7,"ARK3!A7","L. silvarum"]